bitfinex-derivatives/quotes_BTCF0:USTF0_20241003
["timestamp","ask_amount","ask_price","bid_price","bid_amount"]
[1727941647835,0.002,61140.0,61136.0,0.06543]
[1727941648039,0.002,61140.0,61134.0,1.52053252]
[1727941648040,0.002,61140.0,61138.0,0.13]
[1727941648240,0.001,61140.0,61139.0,0.0302]
[1727941648748,0.065423,61143.0,61139.0,0.0302]
[1727941649347,0.065423,61143.0,61140.0,0.065426]
[1727941649537,0.0314,61150.0,61142.0,0.13]
[1727941649845,0.065414,61152.0,61146.0,0.13]
[1727941650052,0.01899369,61154.0,61146.0,0.13]
[1727941650441,0.065417,61149.0,61146.0,0.13]
[1727941650644,0.065418,61148.0,61146.0,0.13]
[1727941651245,0.001,61150.0,61146.0,0.13]
[1727941651246,0.001,61150.0,61147.0,0.3608]
[1727941651448,0.050054,61152.0,61147.0,0.3608]
[1727941651636,0.4908,61160.0,61150.0,0.13]
[1727941651637,0.065409,61156.0,61150.0,0.13]
[1727941651839,0.067726,61160.0,61155.0,0.4908]
[1727941652043,0.065401,61164.0,61159.0,0.13]
[1727941652450,0.0319,61167.0,61163.0,0.13]
[1727941652745,0.0654,61165.0,61163.0,0.13]
[1727941652943,0.0654,61165.0,61162.0,0.3608]
[1727941652944,0.42863601,61168.0,61162.0,0.3608]
[1727941653156,0.065402,61163.0,61162.0,0.3608]
[1727941654449,0.065402,61163.0,61162.0,0.3618]
[1727941655044,0.066402,61163.0,61162.0,0.3628]
[1727941658147,0.001,61163.0,61162.0,0.3628]
[1727941658348,0.001,61163.0,61162.0,0.428203]
[1727941662450,0.001,61163.0,61162.0,0.558203]
[1727941662640,0.001,61163.0,61162.0,0.428203]
[1727941662946,0.001,61163.0,61162.0,0.3628]
[1727941663741,0.001,61163.0,61162.0,0.428203]
[1727941666257,0.066402,61163.0,61162.0,0.428203]
[1727941672254,0.066402,61163.0,61162.0,0.3628]
[1727941674461,0.180042,61163.0,61162.0,0.3628]
[1727941674757,0.163682,61163.0,61162.0,0.3628]
[1727941674957,1.254162,61163.0,61154.0,0.0038]
[1727941675149,1.254162,61163.0,61149.0,0.3608]
[1727941675150,0.065416,61150.0,61149.0,0.3608]
[1727941675549,0.065416,61150.0,61149.0,0.38168375]
[1727941677358,0.049056,61150.0,61149.0,0.3608]
[1727941677556,0.539656,61150.0,61149.0,0.3608]
[1727941678257,0.539656,61150.0,61139.0,0.065427]
[1727941678258,1.0906,61150.0,61135.0,0.065431]
[1727941678567,1.0906,61150.0,61134.0,0.3646]
[1727941678568,0.065432,61135.0,61134.0,0.3646]
[1727941678753,0.065432,61135.0,61134.0,1.8608]
[1727941679154,0.065432,61135.0,61134.0,1.88160485]
[1727941679451,0.065432,61135.0,61134.0,1.8608]
[1727941679452,0.049062,61135.0,61134.0,1.8608]
[1727941679757,0.049062,61135.0,61134.0,0.3608]
[1727941680067,0.032692,61135.0,61134.0,0.3608]
[1727941680447,0.065436,61131.0,61130.0,0.04892785]
[1727941680652,0.064436,61131.0,61130.0,0.04892785]
[1727941681761,0.064436,61131.0,61130.0,0.05292785]
[1727941682063,0.668826,61131.0,61130.0,0.05292785]
[1727941682266,1.268826,61131.0,61130.0,0.05292785]
[1727941683563,0.031696,61131.0,61130.0,0.05292785]
[1727941683961,1.09076,61131.0,61130.0,0.05192785]
[1727941684270,1.156196,61131.0,61130.0,0.05192785]
[1727941684563,1.156196,61131.0,61130.0,0.05692785]
[1727941685666,1.156196,61131.0,61130.0,0.008]
[1727941685864,1.156196,61131.0,61130.0,0.00837]
[1727941686068,0.065449,61119.0,61118.0,0.0038]
[1727941686258,0.06145,61118.0,61117.0,0.00245404]
[1727941686566,0.049091,61108.0,61107.0,0.0038]
[1727941686757,0.049091,61108.0,61106.0,0.095562]
[1727941687263,0.049091,61108.0,61107.0,0.065462]
[1727941687460,0.065456,61113.0,61108.0,0.06546]
[1727941687661,0.065456,61112.0,61108.0,0.06546]
[1727941688263,0.065458,61111.0,61108.0,0.06546]
[1727941688868,0.065458,61111.0,61108.0,0.07146]
[1727941689063,0.065458,61111.0,61108.0,0.07646]
[1727941689469,0.065458,61111.0,61108.0,0.07546]
[1727941690970,0.065458,61111.0,61108.0,0.07046]
[1727941691268,0.065458,61111.0,61108.0,0.43626]
[1727941692164,0.065457,61112.0,61109.0,0.06546]
[1727941692369,0.3927,61117.0,61108.0,0.3708]
[1727941692559,0.13,61116.0,61110.0,1.5]
[1727941692759,0.065457,61111.0,61110.0,1.5]
[1727941694371,0.065457,61111.0,61110.0,1.503]
[1727941694579,0.065457,61111.0,61110.0,1.506]
[1727941695070,0.065457,61111.0,61110.0,1.503]
[1727941695273,0.065457,61111.0,61110.0,1.506]
[1727941700373,0.1338,61120.0,61110.0,1.571459]
[1727941700674,0.065453,61116.0,61110.0,1.571459]
[1727941700872,0.13,61120.0,61111.0,0.065457]
[1727941701171,0.065453,61116.0,61111.0,0.065457]
[1727941701672,0.065454,61114.0,61111.0,0.065457]
[1727941701980,0.049086,61113.0,61111.0,0.065457]
[1727941702871,0.049086,61113.0,61111.0,0.067457]
[1727941703778,0.049086,61113.0,61111.0,0.069457]
[1727941704463,0.13,61116.0,61111.0,0.067457]
[1727941704464,0.065456,61112.0,61111.0,0.067457]
[1727941704661,0.195456,61112.0,61111.0,0.004]
[1727941705273,0.065456,61112.0,61111.0,0.004]
[1727941705473,0.3608,61119.0,61111.0,0.004]
[1727941705474,0.065452,61117.0,61111.0,0.004]
[1727941705673,0.049082,61117.0,61116.0,0.065452]
[1727941706171,0.049082,61117.0,61112.0,0.065456]
[1727941706376,0.3608,61119.0,61112.0,0.065456]
[1727941706580,0.065455,61114.0,61112.0,0.065456]
[1727941707077,0.34443,61119.0,61112.0,0.065456]
[1727941707378,0.065456,61112.0,61111.0,0.0358]
[1727941707580,0.065456,61112.0,61111.0,0.0338]
[1727941707874,0.064456,61112.0,61111.0,0.0338]
[1727941708075,0.064456,61112.0,61111.0,0.002]
[1727941708269,0.064456,61112.0,61110.0,1.565458]
[1727941708270,0.048086,61112.0,61110.0,1.565458]
[1727941708470,0.048086,61112.0,61110.0,1.63027675]
[1727941708774,0.195456,61112.0,61111.0,0.002]
[1727941708977,0.195456,61112.0,61111.0,0.004]
[1727941709873,0.179086,61112.0,61111.0,0.004]
[1727941710083,0.179086,61112.0,61111.0,0.05307536]
[1727941710471,0.179086,61112.0,61111.0,0.04907536]
[1727941711074,0.179086,61112.0,61111.0,0.05107536]
[1727941711272,0.179086,61112.0,61111.0,0.05307536]
[1727941713479,0.065452,61116.0,61111.0,0.134]
[1727941713684,0.065452,61116.0,61115.0,0.11452463]
[1727941713872,0.065452,61116.0,61115.0,0.04907263]
[1727941714975,0.065452,61116.0,61113.0,0.13027375]
[1727941715173,0.065452,61116.0,61114.0,0.065454]
[1727941715370,0.067452,61116.0,61114.0,0.065454]
[1727941715580,0.002,61116.0,61115.0,0.065453]
[1727941716281,0.067452,61116.0,61115.0,0.065453]
[1727941716681,0.002,61116.0,61113.0,0.06481875]
[1727941716878,0.065454,61114.0,61113.0,0.06481875]
[1727941717181,0.049084,61114.0,61111.0,0.15116855]
[1727941718073,0.13,61112.0,61111.0,0.06481875]
[1727941718273,0.179086,61112.0,61111.0,0.002]
[1727941718885,0.179086,61112.0,61111.0,0.05107364]
[1727941720079,0.179086,61112.0,61111.0,0.002]
[1727941720080,0.162716,61112.0,61111.0,0.002]
[1727941720286,0.047087,61111.0,61110.0,0.00197]
[1727941720583,0.045087,61111.0,61110.0,0.05104461]
[1727941721281,0.045087,61111.0,61110.0,0.02135]
[1727941721489,0.045087,61111.0,61110.0,0.02435]
[1727941721490,0.138687,61111.0,61110.0,0.02435]
[1727941722481,0.629607,61111.0,61110.0,0.02435]
[1727941722787,1.229607,61111.0,61110.0,0.02435]
[1727941723672,0.065465,61104.0,61102.0,0.04907431]
[1727941723879,0.065466,61103.0,61102.0,0.04907431]
[1727941724079,0.556426,61103.0,61102.0,0.04907431]
[1727941724278,0.065467,61102.0,61101.0,0.04907431]
[1727941724479,0.195467,61102.0,61101.0,0.04907431]
[1727941724674,0.06547,61099.0,61098.0,0.06481875]
[1727941724883,0.48212,61102.0,61094.0,0.08102344]
[1727941725089,0.065475,61095.0,61094.0,0.08102344]
[1727941725291,0.065475,61095.0,61093.0,0.08102344]
[1727941725485,0.065476,61094.0,61093.0,0.08102344]
[1727941725687,0.065476,61094.0,61093.0,0.19103698]
[1727941725880,0.065476,61094.0,61093.0,0.08102344]
[1727941726292,0.065472,61098.0,61094.0,0.065475]
[1727941726484,0.057472,61098.0,61097.0,0.06538474]
[1727941726676,0.057472,61098.0,61096.0,0.06538474]
[1727941727086,0.065472,61097.0,61096.0,0.06538474]
[1727941727289,0.065472,61097.0,61095.0,0.06538474]
[1727941727688,0.4918,61102.0,61095.0,0.06538474]
[1727941727983,0.060474,61096.0,61095.0,0.06538474]
[1727941728184,0.001,61097.0,61094.0,0.13085974]
[1727941728394,0.065475,61095.0,61094.0,0.11449823]
[1727941728582,0.001,61097.0,61094.0,0.04902323]
[1727941728778,0.4908,61102.0,61099.0,0.06547]
[1727941728779,0.3608,61102.0,61099.0,0.06547]
[1727941728981,0.1338,61110.0,61101.0,0.065468]
[1727941728982,0.050084,61106.0,61101.0,0.065468]
[1727941729187,0.0038,61114.0,61109.0,0.065459]
[1727941729386,0.065454,61115.0,61110.0,0.065458]
[1727941729584,0.1338,61120.0,61111.0,1.565457]
[1727941729585,0.34443,61112.0,61111.0,1.565457]
[1727941729784,0.34443,61112.0,61106.0,0.08575067]
[1727941729986,0.409887,61112.0,61106.0,0.065462]
[1727941730189,0.065464,61106.0,61102.0,0.065466]
[1727941730390,0.065464,61106.0,61103.0,1.5]
[1727941730689,0.049094,61106.0,61103.0,1.5]
[1727941730886,0.065464,61105.0,61103.0,1.5]
[1727941731090,0.13,61104.0,61103.0,1.5]
[1727941731391,0.11363,61104.0,61103.0,1.5]
[1727941731593,0.179095,61104.0,61103.0,1.5]
[1727941732482,0.180095,61104.0,61103.0,1.5]
[1727941732884,0.06547,61100.0,61094.0,0.0329]
[1727941733090,0.19547,61100.0,61094.0,0.098375]
[1727941733292,0.065471,61099.0,61095.0,1.565474]
[1727941733494,0.002,61104.0,61095.0,1.565474]
[1727941733495,0.13,61096.0,61095.0,1.565474]
[1727941733794,0.002,61104.0,61095.0,1.5]
[1727941733991,0.13,61096.0,61095.0,1.5]
[1727941734192,0.13,61096.0,61094.0,0.0490025]
[1727941734193,0.13,61096.0,61094.0,0.005]
[1727941734386,0.065475,61095.0,61094.0,0.005]
[1727941734588,0.13,61096.0,61092.0,0.3608]
[1727941734589,0.131,61096.0,61092.0,0.3608]
[1727941734891,0.065477,61093.0,61092.0,0.3608]
[1727941735895,0.065477,61093.0,61092.0,0.3658]
[1727941737183,0.066477,61093.0,61092.0,0.3658]
[1727941737384,0.066477,61093.0,61090.0,1.5]
[1727941737385,0.065479,61091.0,61090.0,1.5]
[1727941737694,0.049099,61091.0,61087.0,0.0490025]
[1727941737893,0.049099,61091.0,61089.0,0.065481]
[1727941738697,0.049099,61091.0,61090.0,1.5]
[1727941738995,0.050099,61091.0,61090.0,1.5]
[1727941739502,0.051099,61091.0,61090.0,1.5]
[1727941740399,0.050099,61091.0,61090.0,1.5]
[1727941740597,0.051099,61091.0,61090.0,1.5]
[1727941741593,0.051099,61091.0,61082.0,0.00245548]
[1727941741594,0.411899,61091.0,61082.0,0.00245548]
[1727941741794,0.065487,61083.0,61082.0,0.00245548]
[1727941742292,1.140227,61083.0,61076.0,0.3608]
[1727941742496,0.13,61077.0,61068.0,0.0528025]
[1727941742683,0.0948,61082.0,61067.0,0.0490025]
[1727941742684,0.195502,61069.0,61067.0,0.0490025]
[1727941742984,0.11362,61069.0,61066.0,0.0490025]
[1727941743182,0.13,61068.0,61064.0,0.1477095]
[1727941743395,0.0038,61077.0,61064.0,0.098707]
[1727941743396,0.11362,61065.0,61064.0,0.098707]
[1727941743699,0.13,61067.0,61064.0,0.098707]
[1727941744495,0.001,61069.0,61068.0,0.065504]
[1727941746090,0.001,61069.0,61068.0,0.08675859]
[1727941746297,0.13,61075.0,61068.0,0.02125459]
[1727941746498,0.13,61075.0,61073.0,0.065498]
[1727941747694,0.34822,61083.0,61080.0,0.065491]
[1727941747897,0.34822,61083.0,61082.0,0.065489]
[1727941748095,0.0024564,61088.0,61087.0,0.081863]
[1727941748491,0.0024564,61088.0,61087.0,1.581863]
[1727941749093,0.13,61090.0,61087.0,0.081863]
[1727941749396,0.00672,61109.0,61089.0,0.4908]
[1727941749593,0.13,61103.0,61090.0,1.5]
[1727941749897,0.13,61099.0,61090.0,1.5]
[1727941750496,0.007,61101.0,61096.0,0.065473]
[1727941750693,0.0024554,61107.0,61102.0,0.00338]
[1727941750694,0.065463,61106.0,61102.0,0.00338]
[1727941750997,0.065463,61106.0,61102.0,0.068847]
[1727941751192,0.0024554,61107.0,61103.0,0.065466]
[1727941751390,0.0024554,61107.0,61104.0,0.3608]
[1727941751591,0.065463,61106.0,61104.0,0.3608]
[1727941751897,0.065464,61105.0,61104.0,0.3608]
[1727941752087,0.1324554,61107.0,61104.0,0.3608]
[1727941752500,0.1324554,61107.0,61104.0,0.426265]
[1727941753092,0.009,61105.0,61104.0,0.426265]
[1727941753891,0.014,61106.0,61104.0,0.426265]
[1727941754093,0.065464,61105.0,61104.0,0.3618]
[1727941754494,0.065464,61105.0,61104.0,0.3608]
[1727941755298,0.071464,61105.0,61104.0,0.3618]
[1727941756008,0.073464,61105.0,61104.0,0.3618]
[1727941757004,0.078464,61105.0,61104.0,0.3618]
[1727941758099,0.078464,61105.0,61104.0,0.427265]
[1727941758100,0.013,61105.0,61104.0,0.427265]
[1727941758299,0.078464,61105.0,61104.0,0.3618]
[1727941758798,0.013,61105.0,61104.0,0.427265]
[1727941760004,0.013,61105.0,61104.0,0.3618]
[1727941761297,0.208464,61105.0,61104.0,0.3618]
[1727941765292,0.078464,61105.0,61104.0,0.3618]
[1727941769297,0.078464,61105.0,61104.0,0.001]
[1727941769501,0.141964,61105.0,61104.0,0.001]
[1727941774512,0.078464,61105.0,61104.0,0.001]
[1727941774707,0.078464,61105.0,61104.0,0.066465]
[1727941776115,0.013,61105.0,61104.0,0.066465]
[1727941776813,0.013,61105.0,61104.0,0.08699403]
[1727941777013,0.013,61105.0,61104.0,0.08896403]
[1727941777917,0.078464,61105.0,61104.0,0.08896403]
[1727941779614,0.013,61105.0,61104.0,0.08896403]
[1727941780017,0.013,61105.0,61104.0,0.11926403]
[1727941780325,0.013,61105.0,61104.0,0.16826653]
[1727941780917,0.00962,61105.0,61104.0,0.16826653]
[1727941781429,0.065459,61110.0,61108.0,0.065461]
[1727941781723,0.049089,61110.0,61108.0,0.065461]
[1727941782023,0.032719,61110.0,61109.0,0.3608]
[1727941782225,0.065451,61118.0,61109.0,0.3608]
[1727941782530,0.049086,61113.0,61109.0,0.426259]
[1727941782712,0.065457,61112.0,61109.0,0.426259]
[1727941782912,0.01,61110.0,61109.0,0.426259]
[1727941783118,0.075459,61110.0,61109.0,0.3608]
[1727941783315,0.085459,61110.0,61109.0,0.3608]
[1727941783522,0.205459,61110.0,61109.0,0.3618]
[1727941784023,0.195459,61110.0,61109.0,0.3618]
[1727941784224,0.195459,61110.0,61109.0,0.3608]
[1727941784418,0.206459,61110.0,61109.0,0.3618]
[1727941784726,0.217459,61110.0,61109.0,0.3618]
[1727941786321,0.217459,61110.0,61109.0,0.001]
[1727941788623,0.087459,61110.0,61109.0,0.001]
[1727941789025,0.087459,61110.0,61109.0,0.06646]
[1727941789726,0.022,61110.0,61109.0,0.001]
[1727941798944,0.087459,61110.0,61109.0,0.001]
[1727941800446,0.087459,61110.0,61109.0,0.06646]
[1727941800746,0.087459,61110.0,61109.0,0.001]
[1727941803445,0.07053,61110.0,61101.0,0.0038]
[1727941803647,0.06547,61100.0,61098.0,0.065471]
[1727941803848,0.13,61102.0,61098.0,0.065471]
[1727941803849,0.06547,61099.0,61098.0,0.065471]
[1727941804159,0.13,61102.0,61092.0,0.0490025]
[1727941804454,0.06548,61091.0,61090.0,0.02061265]
[1727941804651,0.06548,61090.0,61089.0,0.36325519]
[1727941804851,0.0491,61090.0,61089.0,0.36325519]
[1727941805049,0.03172,61090.0,61089.0,0.36325519]
[1727941805365,0.13,61093.0,61080.0,0.100991]
[1727941805541,0.13,61081.0,61076.0,0.0038]
[1727941805743,0.12,61079.0,61075.0,0.4098025]
[1727941805943,0.12,61079.0,61076.0,1.5]
[1727941806155,0.13,61081.0,61076.0,1.5]
[1727941806359,0.19549,61081.0,61076.0,1.5]
[1727941806653,0.065492,61080.0,61076.0,1.5]
[1727941806855,0.195494,61077.0,61076.0,1.5]
[1727941807048,0.179114,61077.0,61076.0,1.5]
[1727941807355,0.049115,61076.0,61075.0,0.38165586]
[1727941807550,0.049115,61076.0,61075.0,0.3608]
[1727941807750,0.065502,61070.0,61068.0,0.3608]
[1727941807960,0.174502,61069.0,61068.0,0.3608]
[1727941808252,0.028112,61069.0,61068.0,0.3608]
[1727941808455,0.158112,61069.0,61068.0,0.3608]
[1727941808856,0.028112,61069.0,61068.0,0.3608]
[1727941809353,0.13,61073.0,61068.0,0.3608]
[1727941809657,0.001,61076.0,61068.0,0.3608]
[1727941809658,0.13,61069.0,61068.0,0.3608]
[1727941810052,0.067496,61076.0,61068.0,0.3608]
[1727941810357,0.001,61069.0,61068.0,0.3608]
[1727941811151,0.002,61069.0,61068.0,0.3608]
[1727941811458,0.001,61069.0,61068.0,0.3608]
[1727941812956,0.002,61069.0,61068.0,0.3608]
[1727941813752,0.002,61069.0,61066.0,0.01639]
[1727941813753,0.065504,61068.0,61066.0,0.01639]
[1727941814853,0.066504,61068.0,61066.0,0.01639]
[1727941816062,0.067504,61068.0,61066.0,0.01639]
[1727941818259,0.002,61068.0,61066.0,0.01639]
[1727941818463,0.002,61068.0,61067.0,0.065505]
[1727941818663,0.002,61068.0,61067.0,0.127905]
[1727941818961,0.0038,61078.0,61075.0,0.065496]
[1727941819273,0.049111,61080.0,61072.0,0.13]
[1727941819558,0.049111,61080.0,61073.0,1.565498]
[1727941820057,0.11362,61078.0,61073.0,1.5]
[1727941820261,0.195495,61076.0,61073.0,1.5]
[1727941821362,0.179115,61076.0,61073.0,1.5]
[1727941822053,0.065497,61074.0,61073.0,1.5]
[1727941822253,0.065499,61072.0,61068.0,0.065503]
[1727941822461,0.17911,61071.0,61067.0,0.3916]
[1727941822651,0.13,61069.0,61068.0,1.5]
[1727941823048,0.065497,61075.0,61072.0,0.01639]
[1727941823253,0.13,61086.0,61072.0,0.081888]
[1727941823451,0.0347,61088.0,61072.0,0.081888]
[1727941823452,0.13,61081.0,61072.0,0.081888]
[1727941823764,0.065498,61073.0,61072.0,0.01639]
[1727941824661,0.13,61078.0,61072.0,0.01639]
[1727941824867,0.065489,61082.0,61077.0,0.065494]
[1727941825363,0.13,61086.0,61073.0,0.0309]
[1727941825364,0.001,61075.0,61073.0,0.0309]
[1727941825567,0.001,61075.0,61073.0,0.065498]
[1727941826154,0.065495,61076.0,61073.0,0.065498]
[1727941826972,0.06549,61081.0,61076.0,0.065495]
[1727941827354,0.065491,61080.0,61076.0,0.065495]
[1727941828563,0.066491,61080.0,61076.0,0.065495]
[1727941828758,0.065492,61079.0,61076.0,0.065495]
[1727941829556,0.002,61080.0,61078.0,0.065493]
[1727941830066,0.131,61079.0,61074.0,1.5]
[1727941830263,0.131,61079.0,61072.0,0.01639]
[1727941830264,0.13,61075.0,61072.0,0.01639]
[1727941830656,0.13,61075.0,61073.0,1.5]
[1727941831365,0.195496,61075.0,61073.0,1.5]
[1727941833057,0.065496,61075.0,61073.0,1.5]
[1727941833876,0.13,61082.0,61073.0,1.565498]
[1727941834066,0.065493,61078.0,61073.0,1.565498]
[1727941834269,0.065494,61077.0,61073.0,1.565498]
[1727941834768,0.065496,61075.0,61073.0,1.565498]
[1727941834968,0.065496,61075.0,61073.0,1.5]
[1727941835166,0.065498,61073.0,61072.0,0.01639]
[1727941835568,0.065498,61073.0,61072.0,1.51639]
[1727941835769,0.065498,61073.0,61072.0,0.01639]
[1727941837965,0.159698,61073.0,61072.0,0.01639]
[1727941838161,0.160698,61073.0,61072.0,0.01639]
[1727941839775,0.066498,61073.0,61072.0,0.01639]
[1727941840178,0.001,61073.0,61072.0,0.01639]
[1727941840470,0.001,61073.0,61072.0,0.081889]
[1727941841074,0.065496,61075.0,61072.0,0.081889]
[1727941841376,0.196498,61073.0,61072.0,0.01639]
[1727941842284,0.195498,61073.0,61072.0,0.01639]
[1727941843983,0.196498,61073.0,61072.0,0.01639]
[1727941844881,0.558298,61073.0,61072.0,0.01639]
[1727941847486,0.560298,61073.0,61072.0,0.01639]
[1727941847879,0.58141222,61073.0,61072.0,0.01639]
[1727941848576,1.07261222,61073.0,61072.0,0.01639]
[1727941849378,1.67261222,61073.0,61072.0,0.01639]
[1727941849580,0.58141222,61073.0,61072.0,0.01639]
[1727941849777,0.61619391,61073.0,61072.0,0.01639]
[1727941849989,0.58141222,61073.0,61072.0,0.01639]
[1727941851083,1.07261222,61073.0,61072.0,0.01639]
[1727941851286,1.67261222,61073.0,61072.0,0.01639]
[1727941851584,0.065508,61064.0,61063.0,0.0038]
[1727941851893,0.065508,61064.0,61054.0,0.0038]
[1727941851894,0.049127,61055.0,61054.0,0.0038]
[1727941852184,0.065522,61051.0,61045.0,0.3646]
[1727941852387,0.195522,61051.0,61045.0,0.3608]
[1727941854386,0.197522,61051.0,61045.0,0.3608]
[1727941855591,0.197522,61051.0,61045.0,0.426328]
[1727941856184,0.197522,61051.0,61047.0,0.065526]
[1727941856378,0.197522,61051.0,61045.0,0.3608]
[1727941859176,0.197522,61051.0,61045.0,0.4108]
[1727941860386,0.558322,61051.0,61045.0,0.05]
[1727941860597,0.558322,61051.0,61050.0,1.01639]
[1727941860992,1.649722,61051.0,61050.0,1.01639]
[1727941862587,1.649722,61051.0,61050.0,0.10779412]
[1727941863490,1.649722,61051.0,61050.0,1.2e-07]
[1727941864278,1.649722,61051.0,61041.0,1.2e-07]
[1727941864279,1.158322,61051.0,61041.0,1.2e-07]
[1727941864480,1.158322,61051.0,61031.0,0.3608]
[1727941864481,0.065542,61032.0,61031.0,0.3608]
[1727941864685,0.195542,61032.0,61031.0,0.3608]
[1727941865088,0.195542,61032.0,61029.0,0.0164]
[1727941865089,0.065544,61030.0,61029.0,0.0164]
[1727941866586,0.131,61032.0,61029.0,0.0164]
[1727941866894,0.196543,61032.0,61029.0,0.0164]
[1727941867378,0.195543,61032.0,61030.0,0.065544]
[1727941867984,0.13,61032.0,61029.0,0.0164]
[1727941868186,0.065535,61039.0,61030.0,0.1609]
[1727941868398,0.008,61032.0,61031.0,0.065543]
[1727941868689,0.005,61032.0,61030.0,0.0309]
[1727941868888,0.005,61032.0,61030.0,0.05222396]
[1727941869090,0.005,61032.0,61031.0,1.5]
[1727941869794,0.005,61032.0,61031.0,1.565543]
[1727941869988,0.135,61032.0,61031.0,1.565543]
[1727941870184,0.135,61032.0,61031.0,1.5]
[1727941870498,0.14,61032.0,61029.0,0.0164]
[1727941870796,0.135,61032.0,61030.0,0.065544]
[1727941871095,0.009,61032.0,61031.0,0.065543]
[1727941871595,0.007,61032.0,61031.0,0.065543]
[1727941871892,0.13,61037.0,61035.0,0.065539]
[1727941872093,0.13,61037.0,61036.0,0.125638]
[1727941873085,0.13168103,61050.0,61036.0,0.4209]
[1727941873086,0.13,61048.0,61036.0,0.4209]
[1727941873289,0.195529,61044.0,61041.0,0.065532]
[1727941873497,0.13,61040.0,61038.0,0.065535]
[1727941873696,0.195535,61040.0,61038.0,0.065535]
[1727941874899,0.218535,61040.0,61038.0,0.065535]
[1727941875094,0.218535,61040.0,61039.0,0.0315]
[1727941875296,0.023,61040.0,61039.0,0.097035]
[1727941875489,0.00661,61040.0,61039.0,0.097035]
[1727941876386,0.013,61040.0,61039.0,0.097035]
[1727941877505,0.13,61043.0,61042.0,0.065531]
[1727941878801,0.11361,61043.0,61042.0,0.065531]
[1727941879103,0.11861,61043.0,61042.0,0.065531]
[1727941879599,0.12561,61043.0,61042.0,0.066531]
[1727941881401,0.19114,61043.0,61042.0,0.001]
[1727941882304,0.19114,61043.0,61042.0,0.01739]
[1727941885701,0.19114,61043.0,61042.0,0.51739]
[1727941891212,1.64342,61043.0,61042.0,0.29173]
[1727941891398,0.065542,61032.0,61031.0,0.00197]
[1727941891710,0.195542,61032.0,61031.0,0.00197]
[1727941892701,0.196542,61032.0,61031.0,0.01097]
[1727941893111,0.196542,61032.0,61031.0,0.009]
[1727941893505,0.196542,61032.0,61031.0,0.006]
[1727941893709,0.200542,61032.0,61031.0,0.006]
[1727941894330,0.22174942,61032.0,61031.0,0.006]
[1727941894514,0.22174942,61032.0,61028.0,0.0164]
[1727941894515,0.065545,61029.0,61028.0,0.0164]
[1727941895719,0.067545,61029.0,61028.0,0.0164]
[1727941895909,0.067545,61029.0,61021.0,0.0328]
[1727941895910,0.065553,61022.0,61021.0,0.0328]
[1727941896112,0.556353,61022.0,61016.0,0.00245833]
[1727941896311,0.179158,61017.0,61013.0,0.0607]
[1727941896509,0.065562,61014.0,61013.0,0.0607]
[1727941896713,0.065562,61014.0,61013.0,0.0306]
[1727941897012,0.065563,61013.0,61012.0,0.0164]
[1727941897211,0.195563,61013.0,61012.0,0.0164]
[1727941897417,0.185563,61013.0,61012.0,0.0164]
[1727941897919,0.185563,61013.0,61009.0,0.408811]
[1727941897920,0.065566,61010.0,61009.0,0.408811]
[1727941898140,0.065566,61010.0,61009.0,1e-06]
[1727941898314,0.065566,61010.0,60985.0,0.0263]
[1727941898315,0.065571,61005.0,60985.0,0.0263]
[1727941898619,0.3608,61010.0,60987.0,0.13]
[1727941898620,0.00246006,60999.0,60987.0,0.13]
[1727941898815,0.064579,60998.0,60997.0,0.01641]
[1727941899009,0.194579,60998.0,60997.0,0.01641]
[1727941900014,0.13,60998.0,60997.0,0.01641]
[1727941900417,0.131,60998.0,60997.0,0.01641]
[1727941900809,0.133,60998.0,60997.0,0.01641]
[1727941902623,0.133,60998.0,60997.0,1.51641]
[1727941903211,0.133,60998.0,60997.0,0.01641]
[1727941905125,0.003,60998.0,60997.0,0.01641]
[1727941905422,0.13,61006.0,60997.0,0.01641]
[1727941905929,0.4908,61010.0,61000.0,0.065576]
[1727941906227,0.13,61006.0,60998.0,1.5]
[1727941906611,0.13,61002.0,60998.0,1.5]
[1727941907024,0.13,60999.0,60998.0,1.5]
[1727941907621,0.13,60999.0,60997.0,0.01641]
[1727941908426,0.13,60999.0,60998.0,0.0307]
[1727941908618,0.132,60999.0,60998.0,0.0307]
[1727941908921,0.133,60999.0,60998.0,0.0307]
[1727941909127,0.003,60999.0,60998.0,0.0307]
[1727941909819,0.004,60999.0,60998.0,0.0307]
[1727941910524,0.002,60999.0,60998.0,0.0307]
[1727941910728,0.005,60999.0,60998.0,0.0307]
[1727941911621,0.005,60999.0,60998.0,0.096279]
[1727941912325,0.199362,61014.0,61004.0,0.065572]
[1727941912529,0.195562,61014.0,61010.0,0.01641]
[1727941912734,0.3608,61015.0,61010.0,0.01641]
[1727941912735,0.13,61011.0,61010.0,0.01641]
[1727941913225,0.4908,61015.0,61010.0,0.081976]
[1727941913824,0.014,61014.0,61010.0,0.081976]
[1727941914225,0.50712,61015.0,61010.0,0.081976]
[1727941914431,0.13,61011.0,61010.0,0.01641]
[1727941914929,0.195565,61011.0,61010.0,0.01641]
[1727941915929,0.144,61011.0,61010.0,0.01641]
[1727941916718,0.158,61011.0,61010.0,0.01641]